Cogmind - Beta 13 @@@ ROGUE MODE // 2024.05.03 @ 19:48:21 Player: BrainTooSmol Result: Destroyed by Y-64 Sentinel with Wave Gun Performance ------------- Evolutions (4) 2000 Regions Visited (15) 3000 Robots Destroyed (91) 455 Value Destroyed (5048) 5048 Prototype IDs (2) 40 Alien Tech Used (0) 0 Bonus (8100) 8100 TOTAL SCORE: 18643 Bonus ------- High Alert Combat Kills 198 Follower Combat Kills 3672 Entered Garrisons 1000 Used RIF Installer 3500 Friendly Fire -270 Cogmind --------- Core Integrity 0/850 Matter 217/300 Energy 90/100 System Corruption 1% Temperature Cool (9) Movement Core (1450) Ox28 Location -6/Lower Caves Parts ------- > --- POWER (1) -------- (None) > --- PROPULSION (3) --- (None) > --- UTILITY (9) ------ Huge Storage Unit Enhanced Optical Array Improved Hacking Suite Relay Coupler [Swarmer] (4) Relay Coupler [Brawler] (20) Relay Coupler [Sentry] (25) Relay Coupler [Hunter] (27) > --- WEAPON (2) ------- Mini Assault Cannon Chainsword > --- INVENTORY (25) --- Light Quantum Reactor Hardened Heavy Armor Plating Hardened Heavy Armor Plating Relay Coupler [NC] (29) Relay Coupler [NC] (26) Relay Coupler [Cutter] (26) Relay Coupler [Cutter] (30) Relay Coupler [Duelist] (29) Relay Coupler [Sentry] (19) Relay Coupler [Demolisher] (26) Relay Coupler [Hunter] (17) Relay Coupler [Heavy] (14) Remote Datajack Remote Datajack Improved Plasma Cutter Peak State ------------ > --- POWER ------------ Improved Deuterium Engine > --- PROPULSION ------- Armored Wheel Armored Wheel > --- UTILITY ---------- Huge Storage Unit Advanced Visual Processing Unit Hardened Heavy Armor Plating Improved Hacking Suite Relay Coupler [NC] Relay Coupler [Swarmer] Relay Coupler [Hunter] Relay Coupler [Behemoth] > --- WEAPON ----------- Remote Datajack Improved Plasma Cutter > --- INVENTORY -------- Light Quantum Reactor Hardened Heavy Armor Plating Relay Coupler [NC] Relay Coupler [Swarmer] Relay Coupler [Grunt] Relay Coupler [Grunt] Relay Coupler [Brawler] Relay Coupler [Duelist] Relay Coupler [Sentry] Relay Coupler [Sentry] Relay Coupler [Sentry] Relay Coupler [Sentry] Relay Coupler [Demolisher] Relay Coupler [Specialist] Relay Coupler [Heavy] Relay Coupler [Behemoth] Advanced Assault Cannon Mini Assault Cannon Smartbomb Launcher Remote Datajack Remote Datajack Chainsword [Rating: 60] Favorites ----------- Power Cooled Ion Engine Engine Cooled Ion Engine Power Core Light Nuclear Core Propulsion Armored Wheel Treads Light Treads Leg Aluminum Leg Wheel Armored Wheel Utility Huge Storage Unit Device Seismic Detector Storage Huge Storage Unit Processor Advanced Visual Processing Unit Hackware Relay Coupler [Sentry] Protection Hardened Medium Armor Plating Weapon Remote Datajack Energy Gun EM Pulse Gun Energy Cannon Light EM Pulse Cannon Ballistic Gun Light Assault Rifle Ballistic Cannon Mini Assault Cannon Launcher Grenade Launcher Special Weapon Remote Datajack Impact Weapon Heavy Mace Slashing Weapon Chainsword Special Melee Weapon Improved Datajack Build | -11 -10 -9 -8 -8 -8 -8 -7 -7 -7 -7 -6 -6 -6 -6 -6 ------- Run | Yrd Mat Mat Mat Gar Mat Gar Fac Gar Fac Gar Fac Gar Fac Low Low Slots Evolved 8 | . . 2 2 . . . 2 . . . 2 . . . . Power . | . . . . . . . . . . . . . . . . Propulsion 1 | . . . . . . . 1 . . . . . . . . Utility 7 | . . 2 2 . . . 1 . . . 2 . . . . Weapon . | . . . . . . . . . . . . . . . . Parts Attached 205 | 1 6 9 12 15 12 16 17 22 26 20 13 21 8 2 5 Power 13 | . . 2 . 1 1 1 1 1 1 1 1 1 2 . . Engine 12 | . . 2 . 1 1 1 1 1 1 1 1 1 1 . . Core 1 | . . . . . . . . . . . . . 1 . . Reactor . | . . . . . . . . . . . . . . . . Propulsion 25 | . 3 3 1 1 1 2 3 2 3 1 1 3 1 . . Treads 3 | . . 2 . . . . . 1 . . . . . . . Leg . | . . . . . . . . . . . . . . . . Wheel 22 | . 3 1 1 1 1 2 3 1 3 1 1 3 1 . . Hover . | . . . . . . . . . . . . . . . . Flight . | . . . . . . . . . . . . . . . . Utility 96 | 1 2 2 6 7 7 7 6 10 13 12 7 11 4 . 1 Device 7 | 1 . 1 . 1 . 1 1 1 1 . . . . . . Storage 3 | . 2 . . . . . . . . . . . . . 1 Processor 4 | . . . 2 . . . . . 1 . . . 1 . . Hackware 59 | . . . . 5 5 3 4 5 6 11 6 11 3 . . Protection 23 | . . 1 4 1 2 3 1 4 5 1 1 . . . . Artifact . | . . . . . . . . . . . . . . . . Weapon 71 | . 1 2 5 6 3 6 7 9 9 6 4 6 1 2 4 Energy Gun 1 | . 1 . . . . . . . . . . . . . . Energy Cannon 19 | . . 2 4 . . 2 2 5 4 . . . . . . Ballistic Gun 2 | . . . . 2 . . . . . . . . . . . Ballistic Cannon 8 | . . . . . . . . . 1 2 1 1 . 1 2 Launcher 5 | . . . 1 1 . . . . 2 . . . . . 1 Special Weapon 22 | . . . . 1 1 1 3 4 2 3 3 3 . 1 . Impact Weapon 4 | . . . . 1 . 1 2 . . . . . . . . Slashing Weapon 5 | . . . . . . . . . . 1 . 2 1 . 1 Piercing Weapon . | . . . . . . . . . . . . . . . . Special Melee Weapon 5 | . . . . 1 2 2 . . . . . . . . . Unidentified Prototypes 2 | . . 1 . . . . . . 1 . . . . . . Corrupted Parts 1 | . . . . 1 . . . . . . . . . . . System Corruption 2 | . . . . 2 . . . . . . . . . . . Parts Lost 45 | . 2 3 2 2 1 7 2 4 9 . 4 1 2 . 6 Power 7 | . . 1 . . . 2 . 1 1 . 1 . . . 1 Propulsion 15 | . 1 2 . 1 . 2 . 1 2 . 1 1 2 . 2 Utility 16 | . . . 2 1 . 2 1 2 6 . 1 . . . 1 Weapon 7 | . 1 . . . 1 1 1 . . . 1 . . . 2 Highest Loss Streak 7 | . 1 1 1 1 1 5 1 2 7 . 3 1 1 . 6 To Critical Strikes . | . . . . . . . . . . . . . . . . Average Slot Usage (%) 87 | . 100 96 98 98 95 93 86 87 80 77 77 89 95 93 64 Engine 6 | . 14 10 9 9 8 5 2 7 6 7 5 5 3 6 . Treads 1 | . . 9 4 . . . . 4 . . . . . . . Wheel 12 | . 25 9 13 17 18 17 16 8 13 10 13 16 15 13 . Device 4 | . 14 22 11 7 . 2 2 2 3 . . . . . . Storage 7 | . 14 11 9 9 9 9 7 7 7 7 6 6 6 6 6 Processor 7 | . . . 16 14 9 9 7 7 5 7 6 6 6 6 6 Hackware 23 | . . . . 8 25 28 31 26 14 22 31 40 46 46 40 Protection 6 | . . 10 15 13 7 3 . 5 11 6 . 1 . . . Energy Gun 1 | . 28 5 . . . . . . . . . . . . . Energy Cannon 4 | . . 16 17 9 . 2 8 3 1 . . . . . . Ballistic Cannon 1 | . . . . . . . . . 5 1 1 . . 5 6 Special Weapon 4 | . . . . 3 1 . 4 11 6 11 10 10 6 5 . Impact Weapon 1 | . . . . 3 9 6 1 . . . . . . . . Naked Turns . | . . . . . . . . . . . . . . . . Heaviest Build 122 | 13 88 101 111 111 101 107 107 117 117 122 107 115 99 100 100 Greatest Support 40 | 20 20 40 22 24 24 24 40 40 38 40 40 36 36 24 24 Greatest Overweight (x) 28 | . 4 10 8 8 4 8 3 4 4 4 4 7 4 4 28 Average Overweight (x) 3 | . 1 7 6 4 3 3 2 2 2 2 2 2 2 4 27 Largest Inventory Capacity 25 | 8 25 25 25 25 25 25 25 25 25 25 25 25 25 25 25 Average Capacity 24 | 8 16 25 25 25 25 25 25 25 25 25 25 25 25 25 25 Most Carried 25 | 6 12 18 25 25 25 25 25 25 25 25 25 25 25 21 21 Average Carried 21 | 6 7 13 22 24 23 22 24 24 23 23 23 23 22 21 17 Final Capacity 25 | 8 25 25 25 25 25 25 25 25 25 25 25 25 25 25 25 Final Carried 25 | 6 12 18 25 25 20 25 25 25 25 25 19 25 21 21 17 Class Distribution -------------------- 40% | Botlord-Mutant 31% | Bothacker-Mutant 26% | Mutant Dominant Class ---------------- Mutant | -10/Materials Mutant | -9/Materials Mutant | -8/Materials Mutant | -8/Garrison Bothacker-Mutant | -8/Materials Bothacker-Mutant | -8/Garrison Bothacker-Mutant | -7/Factory Bothacker-Mutant | -7/Garrison Bothacker-Mutant | -7/Factory Botlord-Mutant | -7/Garrison Botlord-Mutant | -6/Factory Botlord-Mutant | -6/Garrison Botlord-Mutant | -6/Factory Botlord-Mutant | -6/Lower Caves Botlord-Mutant | -6/Lower Caves Resources | -11 -10 -9 -8 -8 -8 -8 -7 -7 -7 -7 -6 -6 -6 -6 -6 ----------- Run | Yrd Mat Mat Mat Gar Mat Gar Fac Gar Fac Gar Fac Gar Fac Low Low Matter Collected 4354 | 202 58 95 125 266 115 290 291 400 733 595 315 476 33 127 233 Remotely . | . . . . . . . . . . . . . . . . Salvage Created 4172 | 76 372 460 615 445 . 390 297 284 418 270 . 329 27 27 162 Parts 190 | 10 25 27 23 21 . 12 17 9 18 7 . 9 3 3 6 Haulers Intercepted 2 | . 1 1 . . . . . . . . . . . . . Recyclers Shooed 4 | 1 3 . . . . . . . . . . . . . . Parts Field Recycled . | . . . . . . . . . . . . . . . . Retrieved Matter . | . . . . . . . . . . . . . . . . Parts Self-Destructed 13 | . . . . . . . . . . . . . . 4 9 Prevented . | . . . . . . . . . . . . . . . . Kills | -11 -10 -9 -8 -8 -8 -8 -7 -7 -7 -7 -6 -6 -6 -6 -6 ------- Run | Yrd Mat Mat Mat Gar Mat Gar Fac Gar Fac Gar Fac Gar Fac Low Low Combat Hostiles Destroyed 85 | . 12 3 13 8 . 5 6 7 20 2 1 1 1 1 5 Melee 3 | . . . . 1 . . . . . . . 1 1 . . Guns 12 | . 9 2 . 1 . . . . . . . . . . . Cannons 40 | . . 1 6 1 . 1 4 7 13 2 1 . . 1 3 AOE 22 | . 3 . 4 3 . 3 . . 7 . . . . . 2 Classes Destroyed 16 | 1 4 4 . 2 . 1 . . 3 . . . . . 1 Worker 1 | . . 1 . . . . . . . . . . . . . Builder 1 | . . . . . . . . . 1 . . . . . . Tunneler 3 | 3 . . . . . . . . . . . . . . . Hauler 2 | . 1 1 . . . . . . . . . . . . . Recycler 3 | . . 2 . . . . . . 1 . . . . . . Minesweeper 1 | . . . . . . . . . . . . . . . 1 Operator 3 | . . 1 2 . . . . . . . . . . . . Watcher 4 | . 2 1 . . . . . . 1 . . . . . . Swarmer 21 | . 9 . 3 3 . 3 . 2 . . . . 1 . . Cutter 2 | . . . . . . 1 . . . . 1 . . . . Grunt 28 | . 3 . 7 . . 1 1 4 5 2 . . . . 5 Sentry 9 | . . 3 3 1 . . . . 1 . . 1 . . . Demolisher 1 | . . . . . . . . . 1 . . . . . . Hunter 2 | . . . . 2 . . . . . . . . . . . Programmer 10 | . . . . 2 . . 5 1 1 . . . . 1 . Assembled 13 | . . . . . . . . . 13 . . . . . . Best Kill Streak 13 | 2 4 2 3 3 . 4 1 2 13 2 1 1 1 1 3 Combat Bots Only 13 | . 4 2 3 3 . 4 1 2 13 2 1 1 1 1 3 Max Kills in Single Turn 4 | 1 3 1 3 3 . 3 1 1 4 1 1 1 1 1 2 Gunslinging . | . . . . . . . . . . . . . . . . Exploded 4 | . 3 . 3 3 . 3 . . 4 . . . . . 2 Melee 1 | . . . . 1 . . . . . . . 1 1 . . Uniques/NPCs Destroyed . | . . . . . . . . . . . . . . . . Combat | -11 -10 -9 -8 -8 -8 -8 -7 -7 -7 -7 -6 -6 -6 -6 -6 -------- Run | Yrd Mat Mat Mat Gar Mat Gar Fac Gar Fac Gar Fac Gar Fac Low Low Hostile Shots Fired 706 | . 38 17 55 56 36 49 33 90 116 26 51 28 31 10 70 Missed 202 | . 9 4 19 12 9 11 11 31 44 4 12 9 7 1 19 Damage Taken 8971 | . 296 221 621 648 442 745 385 895 1656 391 678 375 378 151 1089 Core 1826 | . 72 . 86 80 102 131 74 113 299 . 157 61 80 54 517 Absorbed by Shields 114 | . . . . . . . . 23 65 9 . 17 . . . Redirected to Shielding 105 | . . . 44 61 . . . . . . . . . . . Regen/Repaired (Parts) 667 | . . . . . . . . . 426 . 77 . . 164 . Core Remaining (%) 65 | 100 71 100 . . . 27 . . . 30 . . . . . Volleys Fired 483 | 5 34 19 31 35 13 16 35 60 66 48 49 33 18 6 15 Largest 2 | 2 2 2 2 2 1 2 2 2 2 1 1 1 1 1 2 Hottest 180 | 80 80 112 126 126 5 126 160 180 180 48 48 48 5 48 96 Shots Fired 639 | 10 68 38 60 58 13 17 41 75 76 49 49 33 18 6 28 Gun 122 | 10 68 22 . 22 . . . . . . . . . . . Cannon 268 | . . 16 59 23 . 10 21 41 47 9 8 6 . 1 27 Launcher 6 | . . . 1 1 . . . . 3 . . . . . 1 Special 243 | . . . . 12 13 7 20 34 26 40 41 27 18 5 . Kinetic 104 | . . . . 22 . . . . 31 9 8 6 . 1 27 Thermal 79 | . . . . . . . 21 41 16 1 . . . . . Explosive 6 | . . . 1 1 . . . . 3 . . . . . 1 Electromagnetic 208 | 10 68 38 59 23 . 10 . . . . . . . . . Robot Hit Streak 34 | 2 7 15 25 34 10 13 7 16 8 9 9 17 7 4 8 Robot Miss Streak 4 | 2 4 2 2 2 2 2 2 2 3 2 2 2 2 2 2 Penetration Max . | . . . . . . . . . . . . . . . . Secondary Targets . | . . . . . . . . . . . . . . . . Shots Hit Robots 495 | 4 34 23 48 46 26 26 28 53 47 48 37 39 14 3 19 Core Hits 137 | 3 18 10 22 10 . 5 4 9 29 5 2 7 1 1 11 Critical Kills 4 | . . . . 1 . 1 2 . . . . . . . . Critical Parts Destroyed 6 | . . . . 3 . 3 . . . . . . . . . Critical Strikes 22 | . 1 . 1 4 . 4 2 . 1 2 . 5 . . 2 Meltdown 2 | . . . . . . . 2 . . . . . . . . Destroy 1 | . . . . 1 . . . . . . . . . . . Blast 3 | . . . . . . . . . 1 . . . . . 2 Corrupt 2 | . 1 . 1 . . . . . . . . . . . . Smash 7 | . . . . 3 . 4 . . . . . . . . . Sever 7 | . . . . . . . . . . 2 . 5 . . . Melee Attacks 93 | . . . . 19 19 27 . . . 9 . 17 1 . 1 Impact 35 | . . . . 19 . 16 . . . . . . . . . Slashing 28 | . . . . . . . . . . 9 . 17 1 . 1 Piercing . | . . . . . . . . . . . . . . . . Sneak Attacks 14 | . . . . . 3 7 . . . . . 2 1 . 1 Combat Hostiles 6 | . . . . . . 3 . . . . . 2 1 . . Follow-up Attacks . | . . . . . . . . . . . . . . . . Damage Inflicted 10576 | 66 722 531 1499 1012 . 719 368 1017 1649 875 190 930 82 37 879 Guns 914 | 66 489 193 . 166 . . . . . . . . . . . Cannons 4940 | . . 239 1121 254 . 90 344 1017 972 169 182 . . 37 515 Explosions 1927 | . 233 99 378 114 . 142 . . 677 . . . . . 284 Melee 2747 | . . . . 478 . 487 . . . 690 . 930 82 . 80 Ramming 32 | . . . . . . . 24 . . . 8 . . . . Kinetic 1754 | . . . . 166 . . . . 685 169 182 . . 37 515 Thermal 2432 | . 233 99 295 . . 141 344 1017 287 16 . . . . . Explosive 1159 | . . . 83 114 . 1 . . 677 . . . . . 284 Electromagnetic 2452 | 66 489 432 1121 254 . 90 . . . . . . . . . Impact 965 | . . . . 478 . 487 . . . . . . . . . Slashing 1782 | . . . . . . . . . . 690 . 930 82 . 80 Piercing . | . . . . . . . . . . . . . . . . Highest Corruption 24 | . 2 . 1 4 4 4 3 6 24 24 1 1 1 1 1 Average Corruption 5 | . 2 . 1 1 4 4 2 4 19 24 1 1 1 1 1 Corruption Purged . | . . . . . . . . . . . . . . . . Corruption Blocked 4 | . . . . . . . . . . . 4 . . . . Effects 302 | . 6 . 11 19 7 22 15 32 78 71 . 9 6 9 17 Message Errors 62 | . 2 . 4 6 1 4 3 5 13 15 . 2 1 3 3 Matter Fused 77 | . 2 . . 4 1 7 6 6 16 23 . 4 . 3 5 Heat Flow Errors 40 | . . . . 2 1 2 3 4 16 9 . 1 1 . 1 Energy Discharges 38 | . . . 1 2 1 3 2 6 8 9 . 1 1 2 2 Parts Rejected 5 | . . . . 1 . . . 2 1 1 . . . . . Parts Fused 1 | . . . . . . . 1 . . . . . . . . Data Loss (minor) 40 | . 1 . 3 2 1 5 . 5 10 7 . . 2 1 3 Data Loss (major) 17 | . . . 1 1 1 1 . 2 6 1 . 1 . . 3 Misfires 8 | . . . . 1 . . . 1 5 1 . . . . . Alerts 9 | . 1 . 1 . 1 . . 1 . 4 . . 1 . . Misdirections 3 | . . . . . . . . . 2 1 . . . . . Weapon Failures 2 | . . . 1 . . . . . 1 . . . . . . Overload Shots . | . . . . . . . . . . . . . . . . Overflow Damage 720 | . 41 44 48 169 . 215 . 34 32 87 . . . . 50 Projectiles 37 | . . . 3 . . . . 34 . . . . . . . Explosions 190 | . 41 44 45 18 . . . . 32 . . . . . 10 Melee 493 | . . . . 151 . 215 . . . 87 . . . . 40 Knockbacks 16 | . . . . . . 1 . . 6 2 1 . . . 6 Impact 1 | . . . . . . 1 . . . . . . . . . Kinetic 14 | . . . . . . . . . 5 2 1 . . . 6 Secondary 1 | . . . . . . . . . 1 . . . . . . Self-Inflicted Damage 386 | . 39 29 84 . . 44 12 . 137 . 4 . . . 37 Shots 10 | . 1 1 3 . . 2 . . 2 . . . . . 1 Rammed 3 | . . . . . . . 2 . . . 1 . . . . Targets Rammed 3 | . . . . . . . 2 . . . 1 . . . . Kicked . | . . . . . . . . . . . . . . . . Crushed . | . . . . . . . . . . . . . . . . Highest Temperature 439 | 56 222 144 270 228 233 195 172 341 439 258 . 104 72 . 238 Average Temperature 84 | 26 63 40 73 67 108 51 50 119 100 89 . 47 42 . 152 Received Heat Transfer 1921 | . 42 54 279 90 108 216 36 279 67 99 72 81 99 . 399 Effects 7 | . . . 2 . . . . 1 3 1 . . . . . Shutdowns 2 | . . . . . . . . 1 1 . . . . . . Energy Bleed 2 | . . . . . . . . . 1 1 . . . . . Interference 3 | . . . 2 . . . . . 1 . . . . . . Siege Activations . | . . . . . . . . . . . . . . . . Robots Corrupted 5 | . . . 3 2 . . . . . . . . . . . Combat Hostiles 5 | . . . 3 2 . . . . . . . . . . . Parts Fried 19 | . 5 5 5 4 . . . . . . . . . . . Impact Corruptions 10 | . . . . 6 . 4 . . . . . . . . . Robots Melted 2 | . . . . . . . 2 . . . . . . . . Combat Hostiles 2 | . . . . . . . 2 . . . . . . . . Parts Melted 10 | . . . . 1 . . 6 3 . . . . . . . Heat Transferred 2965 | . 200 100 300 . . 150 550 1147 500 18 . . . . . Parts Sabotaged . | . . . . . . . . . . . . . . . . Parts Stolen . | . . . . . . . . . . . . . . . . Parts Stripped . | . . . . . . . . . . . . . . . . Power Chain Reactions 12 | . 4 2 5 . . 1 . . . . . . . . . Alert | -11 -10 -9 -8 -8 -8 -8 -7 -7 -7 -7 -6 -6 -6 -6 -6 ------- Run | Yrd Mat Mat Mat Gar Mat Gar Fac Gar Fac Gar Fac Gar Fac Low Low Peak Influence 1782 | 15 333 219 287 1782 898 1190 639 332 422 1130 592 688 328 . . Initial 868 | . 9 87 . 5 868 356 624 110 174 249 592 53 287 . . Average 367 | 5 190 59 57 686 778 797 309 150 167 773 267 402 284 . . Maximum Alert Level 5 | . 1 1 1 5 3 4 2 1 2 4 2 2 1 . . Low Security (%) 45 | 100 39 96 93 28 . . 27 80 69 . 45 22 2 . . Level 1 21 | . 60 3 6 13 . 8 44 19 26 16 24 27 97 . . Level 2 14 | . . . . 15 18 22 27 . 3 14 30 49 . . . Level 3 13 | . . . . 12 81 58 . . . 62 . . . . . Level 4 3 | . . . . 20 . 10 . . . 6 . . . . . Level 5 1 | . . . . 8 . . . . . . . . . . . High Security . | . . . . . . . . . . . . . . . . Max Security . | . . . . . . . . . . . . . . . . Squads Dispatched 41 | . 1 1 9 . 5 . 4 . 8 . 10 . 2 . 1 Investigation 6 | . 1 . 1 . . . . . 1 . 2 . 1 . . Extermination 6 | . . . . . . . 2 . 3 . 1 . . . . Reinforcement 19 | . . 1 5 . 3 . 2 . 1 . 7 . . . . Assault 2 | . . . . . . . . . . . . . 1 . 1 Garrison 8 | . . . 3 . 2 . . . 3 . . . . . . Intercept . | . . . . . . . . . . . . . . . . Searches Triggered . | . . . . . . . . . . . . . . . . Construction Impeded 1 | . . . . . . . . . 1 . . . . . . Haulers Reinforced . | . . . . . . . . . . . . . . . . Active Scanning Responses . | . . . . . . . . . . . . . . . . Cargo Convoy Interrupts 1 | . . . . . . . . . . . 1 . . . . Stealth | -11 -10 -9 -8 -8 -8 -8 -7 -7 -7 -7 -6 -6 -6 -6 -6 --------- Run | Yrd Mat Mat Mat Gar Mat Gar Fac Gar Fac Gar Fac Gar Fac Low Low Distress Signals 15 | . 3 . 5 . 2 . . . 1 . 3 . 1 . . Communications Jammed . | . . . . . . . . . . . . . . . . Distress Signals . | . . . . . . . . . . . . . . . . Times Spotted 365 | . 20 9 22 23 27 26 15 33 45 35 38 38 17 5 12 Peak Tracking Total 11 | . 5 2 5 5 8 7 2 11 6 6 5 7 6 4 10 Tactical Retreats 10 | . 1 . 3 . . . . 2 . . 1 1 2 . . Traps | -11 -10 -9 -8 -8 -8 -8 -7 -7 -7 -7 -6 -6 -6 -6 -6 ------- Run | Yrd Mat Mat Mat Gar Mat Gar Fac Gar Fac Gar Fac Gar Fac Low Low Traps Triggered 38 | . 2 . 1 5 . 6 2 4 4 2 2 10 . . . Indirectly . | . . . . . . . . . . . . . . . . Trap Hack Attempts 5 | . . . . . . 5 . . . . . . . . . Triggered . | . . . . . . . . . . . . . . . . Disarmed . | . . . . . . . . . . . . . . . . Reprogrammed 1 | . . . . . . 1 . . . . . . . . . Reused . | . . . . . . . . . . . . . . . . Traps Extracted . | . . . . . . . . . . . . . . . . Installed . | . . . . . . . . . . . . . . . . Triggered 1 | . . . . . . . . . . . 1 . . . . Machines | -11 -10 -9 -8 -8 -8 -8 -7 -7 -7 -7 -6 -6 -6 -6 -6 ---------- Run | Yrd Mat Mat Mat Gar Mat Gar Fac Gar Fac Gar Fac Gar Fac Low Low Machines Disabled 35 | . 1 2 3 3 . 7 1 . 14 1 . 2 1 . . Max in Single Turn 2 | . 1 1 2 1 . 2 1 . 1 . . 1 . . . Garrison Access 3 | . . . . . . . . . 2 . . . 1 . . Garrison Relay 21 | . . . . 2 . 5 . 5 . 4 . 5 . . . Phase Generator 1 | . . . . . . 1 . . . . . . . . . Machines Repaired . | . . . . . . . . . . . . . . . . Machines Dismantled 14 | . . . . . . . . 5 . 4 . 5 . . . Machines Sabotaged . | . . . . . . . . . . . . . . . . Overloaded Fab Kills . | . . . . . . . . . . . . . . . . Hacking | -11 -10 -9 -8 -8 -8 -8 -7 -7 -7 -7 -6 -6 -6 -6 -6 --------- Run | Yrd Mat Mat Mat Gar Mat Gar Fac Gar Fac Gar Fac Gar Fac Low Low Machines Accessed 68 | . 8 5 10 4 2 4 6 1 12 3 7 3 3 . . Terminals 50 | . 7 4 8 4 . 4 4 1 5 3 4 3 3 . . Fabricators . | . . . . . . . . . . . . . . . . Repair Stations 1 | . . . . . . . . . 1 . . . . . . Recycling Units 7 | . 1 1 1 . . . 1 . 3 . . . . . . Scanalyzers 2 | . . . . . 1 . . . . . 1 . . . . Garrison Access 8 | . . . 1 . 1 . 1 . 3 . 2 . . . . Total Hacks 166 | . 20 15 36 7 3 7 10 2 27 6 17 8 8 . . Successful 81 | . 9 8 18 3 3 2 3 1 18 1 9 2 4 . . Failed 84 | . 10 7 18 4 . 5 7 1 9 5 8 6 4 . . Catastrophic 18 | . 1 . 2 1 . 1 4 . 3 1 3 1 1 . . Database Lockouts 1 | . 1 . . . . . . . . . . . . . . Manual 72 | . 20 13 16 . . . 6 2 6 . 6 . 3 . . Terminals 115 | . 15 11 27 7 . 7 6 2 9 6 9 8 8 . . Fabricators . | . . . . . . . . . . . . . . . . Repair Stations 5 | . . . . . . . . . 5 . . . . . . Recycling Units 19 | . 5 4 5 . . . 2 . 3 . . . . . . Scanalyzers 5 | . . . . . 2 . . . . . 3 . . . . Garrison Access 22 | . . . 4 . 1 . 2 . 10 . 5 . . . . Terminal Hacks 37 | . 5 2 12 3 . 2 1 . 4 1 2 2 3 . . Robot Analysis 8 | . 4 1 3 . . . . . . . . . . . . Open Door 2 | . . . . 1 . . . . . . . 1 . . . Branch Access Points 2 | . . 1 . . . . . . . . . . 1 . . Emergency Access Points 4 | . 1 . . 1 . 1 . . . . . 1 . . . Terminal Index 2 | . . . . . . . 1 . 1 . . . . . . Alert Level 2 | . . . 2 . . . . . . . . . . . . Unreport Threat 5 | . . . 3 . . . . . 1 . 1 . . . . Dispatch Records 2 | . . . 1 . . . . . 1 . . . . . . Maintenance Status 2 | . . . . . . . . . 1 . 1 . . . . Security Status 1 | . . . 1 . . . . . . . . . . . . Assault Status 1 | . . . . . . . . . . . . . 1 . . Recall Reinforcements 1 | . . . 1 . . . . . . . . . . . . Registered Components 1 | . . . 1 . . . . . . . . . . . . Registered Prototypes 1 | . . . . . . . . . . . . . 1 . . Garrison Registry 1 | . . . . 1 . . . . . . . . . . . Patrol Navigation 1 | . . . . . . . . . . 1 . . . . . Security Stations 1 | . . . . . . 1 . . . . . . . . . Fabricator Hacks . | . . . . . . . . . . . . . . . . Repair Station Hacks 4 | . . . . . . . . . 4 . . . . . . Scan Component 2 | . . . . . . . . . 2 . . . . . . Repair 2 | . . . . . . . . . 2 . . . . . . Recycling Unit Hacks 4 | . . 1 1 . . . . . 2 . . . . . . Report Inventory 1 | . . . . . . . . . 1 . . . . . . Retrieve Components 3 | . . 1 1 . . . . . 1 . . . . . . Scanalyzer 3 | . . . . . 2 . . . . . 1 . . . . Insert Component 2 | . . . . . 1 . . . . . 1 . . . . Analyze 1 | . . . . . 1 . . . . . . . . . . Garrison Access Hacks 14 | . . . 1 . 1 . 2 . 6 . 4 . . . . Unlock Access 6 | . . . 1 . 1 . 1 . 1 . 2 . . . . Seal Access 2 | . . . . . . . . . 2 . . . . . . Coupler Status 6 | . . . . . . . 1 . 3 . 2 . . . . Unauthorized Hacks 19 | . 4 5 4 . . . . 1 2 . 2 . 1 . . Terminals 13 | . 4 3 2 . . . . 1 1 . 1 . 1 . . Assimilate 1 | . . 1 . . . . . . . . . . . . . Botnet 7 | . 2 1 2 . . . . 1 . . . . 1 . . Operators 5 | . 2 1 . . . . . . 1 . 1 . . . . Fabricators . | . . . . . . . . . . . . . . . . Repair Stations . | . . . . . . . . . . . . . . . . Recycling Units 4 | . . 2 2 . . . . . . . . . . . . Reject 2 | . . 1 1 . . . . . . . . . . . . Mask 2 | . . 1 1 . . . . . . . . . . . . Scanalyzers . | . . . . . . . . . . . . . . . . Garrison Access 2 | . . . . . . . . . 1 . 1 . . . . Eject 2 | . . . . . . . . . 1 . 1 . . . . Data Cores Recovered 2 | . . . 1 . . . . . 1 . . . . . . Used . | . . . . . . . . . . . . . . . . Hacking Detections 57 | . 6 5 9 4 . 4 5 1 9 3 6 2 3 . . Full Trace Events 3 | . . . 1 . . . . . . . 1 . 1 . . Feedback Events . | . . . . . . . . . . . . . . . . Feedback Blocked . | . . . . . . . . . . . . . . . . Robot Schematics Acquired . | . . . . . . . . . . . . . . . . Robots Built . | . . . . . . . . . . . . . . . . Authchips . | . . . . . . . . . . . . . . . . Time . | . . . . . . . . . . . . . . . . Total Robot Build Rating . | . . . . . . . . . . . . . . . . Part Schematics Acquired 1 | . . . . . 1 . . . . . . . . . . Parts Built . | . . . . . . . . . . . . . . . . Authchips . | . . . . . . . . . . . . . . . . Time . | . . . . . . . . . . . . . . . . Total Part Build Rating . | . . . . . . . . . . . . . . . . Parts Repaired 2 | . . . . . . . . . 2 . . . . . . Time 88 | . . . . . . . . . 88 . . . . . . Parts Recycled . | . . . . . . . . . . . . . . . . Recycled Matter . | . . . . . . . . . . . . . . . . Retrieved Matter . | . . . . . . . . . . . . . . . . Retrieved Components 18 | . . 9 8 . . . . . 1 . . . . . . Parts Scanalyzed 2 | . . . . . 1 . . . . . 1 . . . . Part Schematics Acquired 1 | . . . . . 1 . . . . . . . . . . Parts Damaged . | . . . . . . . . . . . . . . . . Bothacking | -11 -10 -9 -8 -8 -8 -8 -7 -7 -7 -7 -6 -6 -6 -6 -6 ------------ Run | Yrd Mat Mat Mat Gar Mat Gar Fac Gar Fac Gar Fac Gar Fac Low Low Used RIF Installer 7 | . . . . 1 . 1 . 1 . 2 . 2 . . . Code Merge 2 | . . . . . . . . . . 1 . 1 . . . Structural Interface 1 | . . . . . . 1 . . . . . . . . . Autooverride 2 | . . . . . . . . 1 . . . 1 . . . Autoassimilate 1 | . . . . . . . . . . 1 . . . . . Robots Hacked 125 | . . . . 2 15 8 7 15 13 14 21 16 11 3 . Non-combat 15 | . . . . . 4 . 3 . 1 . 5 . 2 . . Combat 110 | . . . . 2 11 8 4 15 12 14 16 16 9 3 . Autooverrided 8 | . . . . . . . . . . 2 2 3 1 . . Autoassimilated 9 | . . . . . . . . . . 2 2 3 2 . . Robot Hacks Applied 123 | . . . . 2 20 10 11 15 14 10 20 10 8 3 . parse_system 3 | . . . . . 1 1 . . 1 . . . . . . no_distress 2 | . . . . . 1 . 1 . . . . . . . . generate_echo 2 | . . . . . . . 1 . . . 1 . . . . deconstruct_machine 1 | . . . . . . . . . . . 1 . . . . purge_threat 6 | . . . . . 1 . 2 . 1 . 2 . . . . map_route 2 | . . . . . 1 . 1 . . . . . . . . find_shortcuts 1 | . . . . . 1 . . . . . . . . . . find_garrison 3 | . . . . . 1 . 1 . . . 1 . . . . scatter_targeting 6 | . . . . . . . 2 2 2 . . . . . . disrupt_area 1 | . . . . . . . . 1 . . . . . . . amplify_resonance 1 | . . . . . . . . 1 . . . . . . . wipe_record 1 | . . . . . . . . . 1 . . . . . . reboot_system 1 | . . . . . . . . . 1 . . . . . . overwrite_iff 24 | . . . . . 6 4 . 4 2 . 3 . 2 3 . streamctrl_low 1 | . . . . . 1 . . . . . . . . . . formatsys_low 5 | . . . . . 1 . 1 . . . 2 . 1 . . formatsys_high 63 | . . . . 2 6 5 2 7 6 10 10 10 5 . . Relay Couplers Released 93 | . . . . 14 . 22 . 17 4 13 4 18 1 . . Ejected 8 | . . . . . . . . . 4 . 4 . . . . Machine Destruction 81 | . . . . 10 . 22 . 17 . 13 . 18 1 . . Programmers 4 | . . . . 4 . . . . . . . . . . . Attached 57 | . . . . 5 5 3 3 5 6 11 5 11 3 . . Merged Code Value 42 | . . . . . . . . . . 12 . 30 . . . Fabnet Peak Effective % . | . . . . . . . . . . . . . . . . Robots Rewired 17 | . . . . 4 . . . 3 . 6 . 4 . . . Allies Hacked 1 | . . . . 1 . . . . . . . . . . . Hacks Repelled . | . . . . . . . . . . . . . . . . Allies | -11 -10 -9 -8 -8 -8 -8 -7 -7 -7 -7 -6 -6 -6 -6 -6 -------- Run | Yrd Mat Mat Mat Gar Mat Gar Fac Gar Fac Gar Fac Gar Fac Low Low Total Allies 127 | . . 1 . 6 12 8 3 14 8 22 19 20 11 3 . Largest Group 13 | . . 1 1 5 6 4 2 5 3 11 9 13 3 4 3 Highest-Rated Group 475 | . . 10 10 134 92 63 37 96 98 297 261 475 96 77 65 Highest-Rated Ally 119 | . . 10 10 39 21 40 21 32 34 40 90 119 47 32 32 Total Orders 87 | . . 4 1 4 6 15 2 . 8 19 14 10 . 1 3 STAY 42 | . . 2 1 2 3 7 1 . 4 10 6 5 . . 1 ROAM 1 | . . . . . . . . . . . . . . . 1 FOLLOW 40 | . . 2 . 2 3 8 1 . 4 9 6 5 . . . AID 4 | . . . . . . . . . . . 2 . . 1 1 Ally Attacks 684 | . . . . 45 52 45 23 57 80 139 111 96 24 10 2 Total Damage 15994 | . . . . 881 780 834 525 1104 2103 2880 2830 3259 451 229 118 Kills 150 | . . . . 13 10 16 3 10 23 31 18 18 5 2 1 Allies Corrupted 2 | . . . . . . . . . . 1 . 1 . . . Allies Melted . | . . . . . . . . . . . . . . . . Intel | -11 -10 -9 -8 -8 -8 -8 -7 -7 -7 -7 -6 -6 -6 -6 -6 ------- Run | Yrd Mat Mat Mat Gar Mat Gar Fac Gar Fac Gar Fac Gar Fac Low Low Robot Analysis Total 8 | . 4 1 3 . . . . . . . . . . . . Derelict Logs Recovered 2 | . . . . . . . . . . . . . . 2 . Drone Launches . | . . . . . . . . . . . . . . . . Drone Recoveries . | . . . . . . . . . . . . . . . . Exploration | -11 -10 -9 -8 -8 -8 -8 -7 -7 -7 -7 -6 -6 -6 -6 -6 ------------- Run | Yrd Mat Mat Mat Gar Mat Gar Fac Gar Fac Gar Fac Gar Fac Low Low Turns Passed 21906 | 72 671 1610 2270 2174 483 1335 1242 1376 1596 1699 1293 1664 610 1108 2703 Spaces Moved 10901 | 22 460 597 1043 1040 269 802 864 768 965 1012 788 984 406 693 188 Core 184 | . . . . . . . . . . . . . . . 184 Treads 92 | . . 92 . . . . . . . . . . . . . Legs 56 | 22 34 . . . . . . . . . . . . . . Wheels 10569 | . 426 505 1043 1040 269 802 864 768 965 1012 788 984 406 693 4 Hover . | . . . . . . . . . . . . . . . . Flight . | . . . . . . . . . . . . . . . . Fastest Speed 80 | 120 80 140 145 145 135 135 120 125 120 125 125 120 120 150 150 Average Speed 167 | 120 105 231 179 159 148 140 125 142 123 139 126 130 131 150 1409 Slowest Speed 1450 | 120 140 560 210 210 150 210 135 160 160 160 150 195 150 150 1450 Overloaded Moves . | . . . . . . . . . . . . . . . . Propulsion Burnouts . | . . . . . . . . . . . . . . . . Robots Hopped 3 | . . . . . . . . . . . . 3 . . . Cave-ins Triggered . | . . . . . . . . . . . . . . . . Exploration Rate (%) 59 | 3 88 37 95 84 42 91 27 89 38 97 30 93 22 85 23 Regions Visited 15 Branch Regions 2 Pre-discovered Areas . | . . . . . . . . . . . . . . . . Known Exits Taken 7 | . . . 1 . 1 . 1 . 1 . 1 . 1 1 . Unknown Exits Taken 3 | 1 1 1 . . . . . . . . . . . . . Scrap Searched 3 | . . . . . . . . . . . . . . 2 1 Spaces Dug 1 | . . . . . . 1 . . . . . . . . . Terrain Destroyed 159 | . 11 4 25 5 . 75 . . 12 . . . . . 27 Melee 1 | . . . . . . 1 . . . . . . . . . Projectile 10 | . . . . . . . . . 5 . . . . . 5 AOE 148 | . 11 4 25 5 . 74 . . 7 . . . . . 22 Terrain Rammed . | . . . . . . . . . . . . . . . . Walls Destroyed . | . . . . . . . . . . . . . . . . Machines Disabled . | . . . . . . . . . . . . . . . . Actions | -11 -10 -9 -8 -8 -8 -8 -7 -7 -7 -7 -6 -6 -6 -6 -6 --------- Run | Yrd Mat Mat Mat Gar Mat Gar Fac Gar Fac Gar Fac Gar Fac Low Low Total 13891 | 57 576 787 1385 1475 344 974 990 973 1307 1231 1055 1298 469 757 213 Wait 1696 | 30 63 147 269 300 24 46 56 56 211 87 190 125 35 57 . Move 10882 | 21 459 596 1043 1039 268 800 863 767 964 1011 787 979 405 692 188 Hop 1 | . . . . . . . . . . . . 1 . . . Pick Up 146 | . 10 10 17 12 3 22 7 13 15 15 5 17 . . . Fast Attach 55 | 1 . 5 4 4 1 . 9 5 10 6 3 3 2 . 2 Attach 73 | . 2 4 1 1 5 11 5 6 10 7 8 9 1 . 3 Detach 13 | . . 2 . 1 . 2 2 . 1 2 . 3 . . . Swap 77 | . 4 . 7 10 6 5 3 11 6 7 2 9 5 2 . Drop 100 | . 4 4 13 14 4 8 8 7 16 12 1 3 2 . 4 Fire 483 | 5 34 19 31 35 13 16 35 60 66 48 49 33 18 6 15 Melee 93 | . . . . 19 19 27 . . . 9 . 17 1 . 1 Ram 3 | . . . . . . . 2 . . . 1 . . . . Kick . | . . . . . . . . . . . . . . . . Crush . | . . . . . . . . . . . . . . . . Escape Stasis 208 | . . . . 40 . 32 . 32 8 8 8 80 . . . Rewire 2 | . . . . . 1 . . . . . . 1 . . . Trap 5 | . . . . . . 5 . . . . . . . . . Miscellaneous 54 | . . . . . . . . 16 . 19 1 18 . . . Route ------- -11/Scrapyard -10/Materials (discovered 4 exits: *Mat x2 / [*Min x2]) -9/Materials (discovered 2 exits: *Mat / Min) -8/Materials (discovered 6 exits: *Fac x3 / [*Sto x2] / Gar) -8/Garrison (discovered 3 exits: *Mat x3) -8/Materials (discovered 3 exits: *Fac / [*Sto] / Gar) -8/Garrison (discovered 3 exits: *Fac x3) -7/Factory (discovered 2 exits: *Fac / Gar) -7/Garrison (discovered 3 exits: *Fac x3) -7/Factory (discovered 3 exits: *Fac / [*Low] / Gar) -7/Garrison (discovered 3 exits: *Fac x3) -6/Factory (discovered 4 exits: [*Fac] / *Low / Gar / Gar) -6/Garrison (discovered 3 exits: *Fac x3) -6/Factory (discovered 2 exits: *Low x2) -6/Lower Caves -6/Lower Caves History --------- Turn | Location | Event 1 | -11/Scrapyard | Discovered new exit (range 1) 73 | -11/Scrapyard | Entered Materials 309 | -10/Materials | Build established: Mutant 354 | -10/Materials | Discovered new exit (range 16) 419 | -10/Materials | Discovered new exit (range 12) 590 | -10/Materials | Discovered new exit (range 9) 659 | -10/Materials | Central database locked down 691 | -10/Materials | Discovered new exit (range 16) 744 | -10/Materials | Entered another Materials area 744 | -9/Materials | Evolved 2 slots: Utility x2 943 | -9/Materials | Identified exit to Mines 1198 | -9/Materials | Discovered new exit (range 8) 2354 | -9/Materials | Entered another Materials area 2354 | -8/Materials | Accompanied by 1 ally 2354 | -8/Materials | Evolved 2 slots: Utility x2 2357 | -8/Materials | Discovered new exit (range 8) 2886 | -8/Materials | Garrison activated, responded to threat 3293 | -8/Materials | Discovered new exit (range 4) 3605 | -8/Materials | Met 7R-MNS 3821 | -8/Materials | Discovered new exit (range 19) 4326 | -8/Materials | Discovered new exit (range 15) 4370 | -8/Materials | Discovered new exit (range 19) 4624 | -8/Materials | Identified exit to Garrison 4624 | -8/Materials | Entered Garrison 4624 | -8/Garrison | Warlord forces raided the area 4674 | -8/Garrison | Triggered checkpoint 4684 | -8/Garrison | Warlord forces retreated 5020 | -8/Garrison | Triggered checkpoint 5081 | -8/Garrison | Discovered new exit (range 16) 5315 | -8/Garrison | Installed Relay Interface Framework 5458 | -8/Garrison | Triggered checkpoint 5759 | -8/Garrison | Discovered new exit (range 13) 5880 | -8/Garrison | Triggered checkpoint 5930 | -8/Garrison | Garrison Relay disabled 5961 | -8/Garrison | Discovered new exit (range 44) 5961 | -8/Garrison | Discovered new exit (range 18) 5961 | -8/Garrison | Discovered new exit (range 62) 6127 | -8/Garrison | Triggered checkpoint 6245 | -8/Garrison | Build established: Bothacker-Mutant 6306 | -8/Garrison | Triggered checkpoint 6458 | -8/Garrison | Triggered checkpoint 6597 | -8/Garrison | Garrison Relay disabled 6798 | -8/Garrison | Entered Materials 6798 | -8/Materials | Accompanied by 1 ally 7028 | -8/Materials | Discovered new exit (range 28) 7063 | -8/Materials | Discovered new exit (range 20) 7110 | -8/Materials | Lost 3 allies 7155 | -8/Materials | Garrison activated, responded to threat 7195 | -8/Materials | Identified exit to Garrison 7253 | -8/Materials | Lost 8 allies 7281 | -8/Materials | Entered Garrison 7281 | -8/Garrison | Accompanied by 1 ally 7399 | -8/Garrison | Phase Generator disabled 7414 | -8/Garrison | Learned Factory security intel 7445 | -8/Garrison | Core integrity fell below 50% 7527 | -8/Garrison | Triggered checkpoint 7568 | -8/Garrison | Garrison Relay disabled 7690 | -8/Garrison | Triggered checkpoint 7762 | -8/Garrison | Triggered checkpoint 7782 | -8/Garrison | Lost 5 parts (2n2u1w) 7802 | -8/Garrison | Lost 3 allies 7881 | -8/Garrison | Discovered new exit (range 9) 7914 | -8/Garrison | Triggered checkpoint 7960 | -8/Garrison | Garrison Relay disabled 8147 | -8/Garrison | Discovered new exit (range 12) 8206 | -8/Garrison | Expanded RIF knowledge: Structural Interface 8260 | -8/Garrison | Garrison Relay disabled 8286 | -8/Garrison | Triggered checkpoint 8323 | -8/Garrison | Garrison Relay disabled 8459 | -8/Garrison | Discovered new exit (range 9) 8498 | -8/Garrison | Garrison Relay disabled 8616 | -8/Garrison | Entered Factory 8616 | -7/Factory | Accompanied by 1 ally 8616 | -7/Factory | Evolved 2 slots: Propulsion x1, Utility x1 9353 | -7/Factory | Identified exit to Garrison 9416 | -7/Factory | Discovered new exit (range 4) 9858 | -7/Factory | Entered Garrison 9858 | -7/Garrison | Accompanied by 2 allies 10016 | -7/Garrison | Triggered checkpoint 10018 | -7/Garrison | Triggered checkpoint 10074 | -7/Garrison | Lost 8 allies 10124 | -7/Garrison | Garrison Relay disabled 10152 | -7/Garrison | Discovered new exit (range 19) 10202 | -7/Garrison | Expanded RIF knowledge: Autooverride 10373 | -7/Garrison | Garrison Relay disabled 10419 | -7/Garrison | Discovered new exit (range 12) 10432 | -7/Garrison | Triggered checkpoint 10480 | -7/Garrison | Triggered checkpoint 10548 | -7/Garrison | Garrison Relay disabled 10648 | -7/Garrison | Triggered checkpoint 10693 | -7/Garrison | Lost 3 allies 10779 | -7/Garrison | Discovered new exit (range 13) 10782 | -7/Garrison | Spotted B-75 Beast 10872 | -7/Garrison | Triggered checkpoint 11039 | -7/Garrison | Garrison Relay disabled 11080 | -7/Garrison | Triggered checkpoint 11148 | -7/Garrison | Triggered checkpoint 11188 | -7/Garrison | Garrison Relay disabled 11234 | -7/Garrison | Entered Factory 11235 | -7/Factory | Assembled infested Garrison Access 11274 | -7/Factory | System corruption reached 10% 11299 | -7/Factory | Core integrity fell below 50% 11314 | -7/Factory | Destroyed 13 combat bots 11324 | -7/Factory | Lost 7 parts (1p1n5u) 11462 | -7/Factory | Repaired Arm. Huge Wheel 11508 | -7/Factory | Repaired Imp. Medium Armor Plating 12333 | -7/Factory | Discovered new exit (range 20) 12558 | -7/Factory | Discovered new exit (range 6) 12572 | -7/Factory | Garrison activated, responded to threat 12819 | -7/Factory | Identified exit to Garrison 12830 | -7/Factory | Entered Garrison 12830 | -7/Garrison | Accompanied by 2 allies 13013 | -7/Garrison | Expanded RIF knowledge: Autoassimilate 13318 | -7/Garrison | Build established: Botlord-Mutant 13350 | -7/Garrison | Triggered checkpoint 13386 | -7/Garrison | Triggered checkpoint 13393 | -7/Garrison | Lost 3 allies 13414 | -7/Garrison | Triggered checkpoint 13461 | -7/Garrison | Rescued a captive Derelict 13462 | -7/Garrison | Rescued a captive Derelict 13492 | -7/Garrison | Garrison Relay disabled 13570 | -7/Garrison | Triggered checkpoint 13604 | -7/Garrison | Triggered checkpoint 13657 | -7/Garrison | Lost 5 allies 13684 | -7/Garrison | Triggered checkpoint 13725 | -7/Garrison | Lost 4 allies 13848 | -7/Garrison | Discovered new exit (range 11) 13964 | -7/Garrison | Triggered checkpoint 14075 | -7/Garrison | Discovered new exit (range 12) 14165 | -7/Garrison | Discovered new exit (range 16) 14184 | -7/Garrison | Triggered checkpoint 14237 | -7/Garrison | Garrison Relay disabled 14312 | -7/Garrison | Expanded RIF knowledge: Code Merge 14410 | -7/Garrison | Triggered checkpoint 14449 | -7/Garrison | Garrison Relay disabled 14529 | -7/Garrison | Entered Factory 14529 | -6/Factory | Accompanied by 5 allies 14529 | -6/Factory | Evolved 2 slots: Utility x2 14541 | -6/Factory | Identified exit to Garrison 14776 | -6/Factory | Lost 4 allies 15095 | -6/Factory | Discovered new exit (range 8) 15455 | -6/Factory | Cargo convoy interrupted 15460 | -6/Factory | Discovered new exit (range 16) 15690 | -6/Factory | Lost 8 allies 15721 | -6/Factory | Lost 3 parts (1n1u1w) 15794 | -6/Factory | Identified exit to Garrison 15822 | -6/Factory | Entered Garrison 15822 | -6/Garrison | Accompanied by 2 allies 15871 | -6/Garrison | Expanded RIF knowledge: Code Merge 16009 | -6/Garrison | Garrison Relay disabled 16012 | -6/Garrison | Triggered checkpoint 16092 | -6/Garrison | Garrison Relay disabled 16138 | -6/Garrison | Spotted B-75 Beast 16169 | -6/Garrison | Assimilated Beast 5a with formatsys_high 16186 | -6/Garrison | Triggered checkpoint 16226 | -6/Garrison | Lost 4 allies 16284 | -6/Garrison | Triggered checkpoint 16326 | -6/Garrison | Garrison Relay disabled 16453 | -6/Garrison | Discovered new exit (range 12) 16474 | -6/Garrison | Spotted Striker 16646 | -6/Garrison | Triggered checkpoint 16726 | -6/Garrison | Triggered checkpoint 16771 | -6/Garrison | Discovered new exit (range 17) 16824 | -6/Garrison | Garrison Relay disabled 16909 | -6/Garrison | Expanded RIF knowledge: Autooverride 17016 | -6/Garrison | Triggered checkpoint 17040 | -6/Garrison | Garrison Relay disabled 17146 | -6/Garrison | Discovered new exit (range 12) 17151 | -6/Garrison | Spotted B-75 Beast 17332 | -6/Garrison | Spotted Executioner 17352 | -6/Garrison | Rewired Executioner 17486 | -6/Garrison | Entered Factory 17495 | -6/Factory | Lost 7 allies 17699 | -6/Factory | Lost 3 allies 17887 | -6/Factory | Spotted B-75 Beast 17926 | -6/Factory | Lost 3 allies 18008 | -6/Factory | Identified exit to Lower Caves 18096 | -6/Factory | Entered Lower Caves 18096 | -6/Lower Caves | Accompanied by 3 allies 18097 | -6/Lower Caves | Encountered a Warlord checkpoint 18195 | -6/Lower Caves | Identified exit to Lower Caves 18944 | -6/Lower Caves | Learned 12 Factory zone layouts 19204 | -6/Lower Caves | Entered another Lower Caves area 19204 | -6/Lower Caves | Accompanied by 3 allies 19221 | -6/Lower Caves | Core integrity fell below 50% 19286 | -6/Lower Caves | Lost 6 parts (1p2n1u2w) 21893 | -6/Lower Caves | Attracted the attention of an 0b10 outpost 21898 | -6/Lower Caves | Core integrity fell below 20% 21907 | -6/Lower Caves | Destroyed by Y-64 Sentinel with Wave Gun Last Messages --------------- 21252_ RIF reveals location of hidden door. 21257_ System corrupted: Component data lost. 21340_ E16A9F/PW=LLPR4PIIH G 21368_ Searching scrap... 21368_ Found Unknown Storage. 21368_ Found 16 Matter. 21369_ Acquired 16 matter. 21513_ Acquired Unknown Storage. 21513_ Identified Matter Compressor. 21515_ Dropped Matter Compressor. 21583_ System corrupted: Heat flow error (+250). 21680_ System corrupted: Component data lost. 21865_ System corrupted: Matter fused (-6). 21893_ Y-64 Sentinel: "DETECTED UNIDENTIFIED DERELICT." 21894_ Penetrated by Slug. 21897_ Y-64 Sentinel: "REQUESTING BACKUP." 21900_ Slug penetrates Wall. 21903_ Critical hit (Burn: +37). 21904_ Penetrated by Slug. 21907_ Discarded Relay Coupler [NC]. Map ----- +----------------------------------------------------+ | ?????????????????????????????????????????????????? | | ?????????????????????????????????????????????????? | | ?????????????????????????????????????????????????? | | ?????????????????????????????????????????????????? | | ?????????????????????????? ?????????????????????? | | ?????????????????????????? ? ???????????????????? | | ?????????????????????????? ????????????????????? | | ?????????????????????????? ????????????????????? | | ?????????????????????????? ????????????????????? | | ?????????????????????????? ????????????????????? | | ?????????????????????????? ????????????????????? | | ?????????????????????????? ????????????????????? | | ?????????????????????????? ?????????????????????? | | ?????????????????????????? ?????????????????????? | | ?????????????????????????# ?????????????????????? | | ????????######???????????# ?????????????????????? | | ????????? $ ?????????? ?????????????????????? | | ??????????? ?????????# #?????????????????????? | | ????????????# ???????# #????????????????###### | | ????????????# ??????# #????????????????# "" " | | ???????????## ?????# #????????????????# """ | | ??????????## ????# #????????????????#" "" | | ?????????## ! #### #?????????????????#! # | | ?????????# %= #####????????###### # | | ????????????????# ## ###?????## ## | | ???????????????????# % l@ g #?##### | | ???????????????????# %=gl ###### #?# | | ????????????????#%! *%! Y ????# #?## | | ????????????????#!! ! ????# #### | | ????????????????# # ##+#???# ## | | ?????????????? ## ?? ???+ ## | | ???????????? $ ##?# ?? ???# #### | | ???????????# #####????#???"""??# #### ### | | ??????????????????????????###??# ## #?# | | ??????????????????????????????? ## #?# | | ???????????????????????????????##### #?# | | ???????????????????????????????????### #? | | ????????????????????????????????????## #? | | ?????????????????????????????????#### ##? | | ???????????????????????# # ##? # | | ??????????????????????????# ### ## | | ?????????????????????????# # # ##### #####? | | ????????????# ??????????????## ????## #???# | | ????????????? ??????????????## #?????## ##???# | | ??????????????? ????????###???# ?????### ##????# | | ???????????????? ????#### ##?## ?????# # #####?# | | ????????????????? ???? # ##?#?????## # #?# | | ???????????????#?? ??? ##?????## ### | | ???????????????# #?# ???# # ##??### ## | | ???????????????# ???# ??## ## | +----------------------------------------------------+ Best States ------------- Heat Dissipation 61 Energy Generation 18 Energy Capacity 800 Matter Stores 300 Matter Capacity 300 Sight Range 22 Terrain Scan Density 10 Armor Coverage 600 Resistance: TH 10 Weapon Shielding 66 Evasion (%) 55 Targeting Accuracy 6 Recoil Reduction 2 Offensive Hacking 12 Defensive Hacking 10 Relay Coupler Types 6 Relay Coupler Value 165 Item Schematics ----------------- Remote Datajack | -8/Materials | Scanalyzed Robot Schematics ------------------ None Fabricated ------------ Nothing Alien Tech Used ----------------- None Achievements -------------- Beloved Brute Force Generalissimo Hehehe Pwned Challenges ------------ None Game ------ Seed ControlRelaySuite Manual? 0 Play Time 03:40:23 Cumulative 79.6 hours Start 2024.05.02 @ 14:05:29 End 2024.05.03 @ 19:48:21 Sessions 4 Manual Loads 0 Difficulty Rogue Special Mode None Game No. 53 Rogue 53 Adventurer 0 Explorer 0 Win Type - Total 1 Types 1/0/0/0/0/0/0/0/0 Lore% 51 Gallery% 44 Achievement% 42 Wizard Run 0 Options --------- Layout 0 ASCII 0 Keyboard 0 Movement Mouse Keybinds 0 Fullscreen 1 Font 18/SmallcapsGlow Map View 76x50 Zoom Use 0% Tactical HUD 1 Map Filters NONE Filters NONE Steam 1 RUN: 3188565e-501f-4cf7-90a4-389a37437e21